Cogmind - Beta 14 @@@ ROGUE MODE // 2024.09.19 @ 17:26:09 Player: Bunch Result: Destroyed by S-10 Pest with Light Assault Rifle Performance ------------- Evolutions (0) 0 Regions Visited (2) 400 Robots Destroyed (11) 55 Value Destroyed (282) 282 Prototype IDs (0) 0 Alien Tech Used (0) 0 Bonus (0) 0 TOTAL SCORE: 737 Bonus ------- None Cogmind --------- Core Integrity 0/250 Matter 300/300 Energy 99/100 System Corruption 0% Temperature Cool (0) Movement Core (800) Ox15 Location -10/Mines Parts ------- > --- POWER (1) -------- (None) > --- PROPULSION (2) --- (None) > --- UTILITY (2) ------ Small Storage Unit High-capacity Storage Unit > --- WEAPON (2) ------- Hammer > --- INVENTORY (20) --- Grenade Launcher Peak State ------------ > --- POWER ------------ Light Ion Engine > --- PROPULSION ------- Light Treads Light Treads > --- UTILITY ---------- Small Storage Unit High-capacity Storage Unit > --- WEAPON ----------- Grenade Launcher Hammer > --- INVENTORY -------- Light Ion Engine Aluminum Leg Aluminum Leg Medium Laser Medium Laser [Rating: 7] Favorites ----------- Power Light Ion Engine Engine Light Ion Engine Propulsion Light Treads Treads Light Treads Leg Aluminum Leg Utility High-capacity Storage Unit Storage High-capacity Storage Unit Weapon Medium Laser Energy Gun Medium Laser Ballistic Gun Assault Rifle Launcher Grenade Launcher Impact Weapon Hammer Build | -11 -10 -10 ------- Run | Yrd Mat Min Slots Evolved . | . . . Power . | . . . Propulsion . | . . . Utility . | . . . Weapon . | . . . Parts Attached 20 | 6 11 3 Power 2 | 1 1 . Engine 2 | 1 1 . Core . | . . . Reactor . | . . . Propulsion 4 | 2 2 . Treads 2 | 2 . . Leg 2 | . 2 . Wheel . | . . . Hover . | . . . Flight . | . . . Utility 3 | 1 2 . Device . | . . . Storage 3 | 1 2 . Processor . | . . . Hackware . | . . . Protection . | . . . Artifact . | . . . Weapon 11 | 2 6 3 Energy Gun 4 | 1 2 1 Energy Cannon . | . . . Ballistic Gun 2 | 1 . 1 Ballistic Cannon . | . . . Launcher 1 | . 1 . Special Weapon . | . . . Impact Weapon 4 | . 3 1 Slashing Weapon . | . . . Piercing Weapon . | . . . Special Melee Weapon . | . . . Unidentified Prototypes . | . . . Parts Lost 10 | . 4 6 Power 2 | . 1 1 Propulsion 3 | . 1 2 Utility . | . . . Weapon 5 | . 2 3 Highest Loss Streak 5 | . 3 5 To Critical Strikes . | . . . Average Slot Usage (%) 92 | . 90 96 Engine 13 | . 13 13 Treads 14 | . 20 . Leg 12 | . 7 26 Storage 23 | . 21 28 Energy Gun 10 | . 9 12 Ballistic Gun 4 | . 6 . Impact Weapon 11 | . 10 13 Peak Build Rating 7 | 6 7 7 Average Rating 6 | 4 6 6 On Entrance 4 | . 6 7 Naked Turns . | . . . Heaviest Build 52 | 12 52 52 Greatest Support 40 | 40 40 20 Greatest Overweight (x) 15 | . 2 15 Average Overweight (x) 1 | . 1 2 Largest Inventory Capacity 20 | 8 20 20 Average Capacity 18 | 7 19 20 Most Carried 8 | 5 8 2 Average Carried 4 | 2 5 1 Final Capacity 20 | 8 20 20 Final Carried 4 | 4 2 1 Class Distribution -------------------- 100% | Mutant Dominant Class ---------------- Mutant | -10/Materials Mutant | -10/Mines Resources | -11 -10 -10 ----------- Run | Yrd Mat Min Matter Collected 453 | 179 220 54 Remotely . | . . . Salvage Created 279 | . 248 31 Parts 13 | . 9 4 Haulers Intercepted . | . . . Recyclers Shooed . | . . . Parts Field Recycled . | . . . Retrieved Matter . | . . . Parts Self-Destructed . | . . . Prevented . | . . . Kills | -11 -10 -10 ------- Run | Yrd Mat Min Combat Hostiles Destroyed 8 | . 6 2 Melee 1 | . 1 . Guns 4 | . 2 2 AOE 2 | . 2 . Classes Destroyed 5 | . 4 1 Worker 1 | . 1 . Builder 1 | . 1 . Watcher 1 | . 1 . Swarmer 2 | . . 2 Grunt 6 | . 6 . Best Kill Streak 4 | . 4 2 Combat Bots Only 2 | . 2 2 Max Kills in Single Turn 2 | . 2 1 Gunslinging . | . . . Exploded 1 | . 1 . Melee 1 | . 1 . Uniques/NPCs Destroyed . | . . . Combat | -11 -10 -10 -------- Run | Yrd Mat Min Hostile Shots Fired 173 | . 75 98 Missed 46 | . 21 25 Damage Taken 1342 | . 740 602 Core 258 | . 82 176 Absorbed by Shields . | . . . Core Remaining (%) 100 | 100 . . Volleys Fired 46 | . 34 12 Largest 2 | . 2 2 Hottest 90 | . 90 70 Shots Fired 59 | . 46 13 Gun 53 | . 40 13 Cannon . | . . . Launcher 6 | . 6 . Special . | . . . Kinetic 17 | . 13 4 Thermal 29 | . 20 9 Explosive 6 | . 6 . Electromagnetic 7 | . 7 . Robot Hit Streak 9 | . 9 4 Robot Miss Streak 3 | . 3 2 Penetration Max . | . . . Secondary Targets . | . . . Shots Hit Robots 38 | . 31 7 Core Hits 17 | . 15 2 Critical Kills . | . . . Critical Parts Destroyed 3 | . 3 . Critical Strikes 5 | . 5 . Burn 2 | . 2 . Smash 3 | . 3 . Melee Attacks 16 | . 12 4 Impact 16 | . 12 4 Slashing . | . . . Piercing . | . . . Sneak Attacks . | . . . Combat Hostiles . | . . . Follow-up Attacks . | . . . Damage Inflicted 835 | . 724 111 Guns 368 | . 294 74 Cannons . | . . . Explosions 223 | . 223 . Melee 244 | . 207 37 Ramming . | . . . Kinetic 79 | . 53 26 Thermal 210 | . 162 48 Explosive 223 | . 223 . Electromagnetic 79 | . 79 . Impact 244 | . 207 37 Slashing . | . . . Piercing . | . . . Highest Corruption . | . . . Average Corruption . | . . . Corruption Purged . | . . . Corruption Blocked . | . . . Overload Shots . | . . . Overflow Damage 77 | . 77 . Projectiles . | . . . Explosions . | . . . Melee 77 | . 77 . Knockbacks 1 | . 1 . Impact 1 | . 1 . Kinetic . | . . . Secondary . | . . . Self-Inflicted Damage 23 | . 23 . Shots 1 | . 1 . Rammed . | . . . Targets Rammed . | . . . Kicked . | . . . Crushed . | . . . Highest Temperature 181 | . 181 50 Average Temperature 65 | . 78 19 Received Heat Transfer 447 | . 447 . Siege Activations . | . . . Robots Corrupted 1 | . 1 . Combat Hostiles 1 | . 1 . Parts Fried 3 | . 3 . Impact Corruptions 3 | . 3 . Robots Melted . | . . . Combat Hostiles . | . . . Parts Melted 4 | . 4 . Heat Transferred 777 | . 629 148 Parts Sabotaged . | . . . Parts Stolen . | . . . Parts Stripped . | . . . Power Chain Reactions . | . . . Alert | -11 -10 -10 ------- Run | Yrd Mat Min Peak Influence 168 | . 168 49 Initial 19 | . . 19 Average 37 | . 50 19 Maximum Alert Level . | . . . Low Security (%) 100 | 100 100 100 Level 1 . | . . . Level 2 . | . . . Level 3 . | . . . Level 4 . | . . . Level 5 . | . . . High Security . | . . . Max Security . | . . . Squads Dispatched 1 | . 1 . Investigation 1 | . 1 . Extermination . | . . . Reinforcement . | . . . Assault . | . . . Garrison . | . . . Intercept . | . . . Searches Triggered . | . . . Construction Impeded . | . . . Haulers Reinforced . | . . . Active Scanning Responses . | . . . Cargo Convoy Interrupts . | . . . Stealth | -11 -10 -10 --------- Run | Yrd Mat Min Distress Signals 1 | . 1 . Communications Jammed . | . . . Distress Signals . | . . . Times Spotted 18 | . 12 6 Peak Tracking Total 4 | . 3 4 Tactical Retreats . | . . . Traps | -11 -10 -10 ------- Run | Yrd Mat Min Traps Triggered . | . . . Indirectly . | . . . Trap Hack Attempts . | . . . Triggered . | . . . Disarmed . | . . . Reprogrammed . | . . . Reused . | . . . Traps Extracted . | . . . Installed . | . . . Triggered . | . . . Machines | -11 -10 -10 ---------- Run | Yrd Mat Min Machines Disabled 1 | . 1 . Max in Single Turn 1 | . 1 . Machines Repaired . | . . . Machines Dismantled . | . . . Machines Sabotaged . | . . . Overloaded Fab Kills . | . . . Hacking | -11 -10 -10 --------- Run | Yrd Mat Min Machines Accessed 2 | . 2 . Terminals 2 | . 2 . Fabricators . | . . . Repair Stations . | . . . Recycling Units . | . . . Scanalyzers . | . . . Garrison Access . | . . . Total Hacks 5 | . 5 . Successful 3 | . 3 . Failed 2 | . 2 . Catastrophic . | . . . Database Lockouts . | . . . Manual . | . . . Terminals 5 | . 5 . Fabricators . | . . . Repair Stations . | . . . Recycling Units . | . . . Scanalyzers . | . . . Garrison Access . | . . . Terminal Hacks 3 | . 3 . Alert Level 1 | . 1 . Dispatch Records 1 | . 1 . Recall Reinforcements 1 | . 1 . Fabricator Hacks . | . . . Repair Station Hacks . | . . . Recycling Unit Hacks . | . . . Scanalyzer . | . . . Garrison Access Hacks . | . . . Unauthorized Hacks . | . . . Terminals . | . . . Fabricators . | . . . Repair Stations . | . . . Recycling Units . | . . . Scanalyzers . | . . . Garrison Access . | . . . Data Cores Recovered . | . . . Used . | . . . Hacking Detections 2 | . 2 . Full Trace Events 1 | . 1 . Feedback Events . | . . . Feedback Blocked . | . . . Robot Schematics Acquired . | . . . Robots Built . | . . . Authchips . | . . . Time . | . . . Total Robot Build Rating . | . . . Part Schematics Acquired . | . . . Parts Built . | . . . Authchips . | . . . Time . | . . . Total Part Build Rating . | . . . Parts Repaired . | . . . Time . | . . . Parts Recycled . | . . . Recycled Matter . | . . . Retrieved Matter . | . . . Retrieved Components . | . . . Parts Scanalyzed . | . . . Part Schematics Acquired . | . . . Parts Damaged . | . . . Bothacking | -11 -10 -10 ------------ Run | Yrd Mat Min Used RIF Installer . | . . . Robots Hacked . | . . . Non-combat . | . . . Combat . | . . . Robot Hacks Applied . | . . . Relay Couplers Released . | . . . Fabnet Peak Effective % . | . . . Robots Rewired . | . . . Allies Hacked . | . . . Hacks Repelled . | . . . Allies | -11 -10 -10 -------- Run | Yrd Mat Min Total Allies . | . . . Largest Group . | . . . Highest-Rated Group . | . . . Highest-Rated Ally . | . . . Total Orders . | . . . Ally Attacks . | . . . Total Damage . | . . . Kills . | . . . Allies Corrupted . | . . . Allies Melted . | . . . Intel | -11 -10 -10 ------- Run | Yrd Mat Min Robot Analysis Total . | . . . Derelict Logs Recovered . | . . . Drone Launches . | . . . Drone Recoveries . | . . . Exploration | -11 -10 -10 ------------- Run | Yrd Mat Min Turns Passed 1228 | 118 788 322 Spaces Moved 439 | 80 252 107 Core 24 | 23 . 1 Treads 237 | 57 180 . Legs 178 | . 72 106 Wheels . | . . . Hover . | . . . Flight . | . . . Fastest Speed 50 | 50 160 260 Average Speed 229 | 128 244 268 Slowest Speed 800 | 160 320 800 Overloaded Moves . | . . . Propulsion Burnouts . | . . . Robots Hopped . | . . . Cave-ins Triggered . | . . . Exploration Rate (%) 24 | 6 42 26 Regions Visited 2 Branch Regions 1 Pre-discovered Areas . | . . . Known Exits Taken . | . . . Unknown Exits Taken 2 | 1 1 . Scrap Searched . | . . . Spaces Dug 5 | . 5 . Terrain Destroyed 34 | . 34 . Melee . | . . . Projectile . | . . . AOE 34 | . 34 . Terrain Rammed . | . . . Walls Destroyed . | . . . Machines Disabled . | . . . Actions | -11 -10 -10 --------- Run | Yrd Mat Min Total 579 | 95 356 128 Wait 42 | . 42 . Move 437 | 79 251 107 Hop . | . . . Pick Up 15 | 10 4 1 Fast Attach . | . . . Attach 16 | 6 7 3 Detach 2 | . 1 1 Swap 4 | . 4 . Drop 1 | . 1 . Fire 46 | . 34 12 Melee 16 | . 12 4 Ram . | . . . Kick . | . . . Crush . | . . . Escape Stasis . | . . . Rewire . | . . . Trap . | . . . Miscellaneous . | . . . Route ------- -11/Scrapyard -10/Materials (discovered 2 exits: [*Min x2]) -10/Mines (discovered 1 exit: [*Mat]) History --------- Turn | Location | Event 8 | -11/Scrapyard | Discovered new exit (range 15) 119 | -11/Scrapyard | Entered Materials 126 | -10/Materials | Discovered new exit (range 16) 314 | -10/Materials | Build established: Mutant 706 | -10/Materials | Lost 3 parts (1p1n1w) 768 | -10/Materials | Discovered new exit (range 15) 907 | -10/Materials | Entered Mines 926 | -10/Mines | Discovered new exit (range 12) 1179 | -10/Mines | Core integrity fell below 50% 1218 | -10/Mines | Core integrity fell below 20% 1229 | -10/Mines | Destroyed by S-10 Pest with Light Assault Rifle Last Messages --------------- 00908_ K-01 Serf collects debris. 00910_ K-01 Serf cleans the Plasma Injector. 00915_ K-01 Serf collects debris. 00926_ EXIT=FOUND 00936_ K-01 Serf collects debris. 01166_ Med. Laser destroyed. 01184_ S-10 Pest destroyed. 01199_ Aluminum Leg destroyed. 01204_ S-10 Pest destroyed. 01206_ R-06 Scavenger collects Lgt. Assault Rifle. 01210_ Lgt. Ion Engine destroyed. 01211_ R-06 Scavenger collects Flight Unit. 01215_ Acquired Lgt. Assault Rifle. 01215_ R-06 Scavenger collects Lgt. Assault Rifle. 01218_ Med. Laser destroyed. 01221_ Aluminum Leg destroyed. 01221_ R-06 Scavenger collects Flight Unit. 01224_ Lgt. Assault Rifle destroyed. 01227_ R-06 Scavenger destroyed. 01228_ Acquired 54 matter. Map ----- +----------------------------------------------------+ | | | ?????????????????????????????????????????????????? | | ?????????????????????????????????????????????????? | | ########?????????????????????????????????????????? | | ####??????????????????????????????????????? | | ##?????????????????????????????????????? | | ##### #?????????????????????????????????????? | | ????# #?????????????????????????????????????? | | ????# ###?????????????????????????????????????? | | ????## ##???????????????????????????????????????? | | ?????## #????????????????????????????????????????? | | ??????# #????????????????????????????????????????? | | ??????# #############????????????????????????????? | | ??????# #????????????????????????????? | | ??????############ #????????????????????????????? | | ?????????????????# #????????????????????????????? | | ?????????????????# #????????????????????????????? | | ????????????????## ##???????????????????????????? | | ???????????????## #???????????????????????????? | | ???????????????# ##??????????????????????????? | | ???????????????#t ##????###??????????????????? | | ?????????####### ##??# ######?????????????? | | ???????# %### #?????????????? | | ?????? s ???????????? | | ?????? ####### % ss##??????????????????? | | ????????????????## @ ##???????????????????? | | ?????????????????# =%[ #????????????????????? | | ?????????????????## ![= #????????????????????? | | ??????????????????# #???????????????????? | | ??????????????????# #???????????????????? | | ??????????????????## ## ##???????????????????? | | ???????????????????###### ##????????????????????? | | ????????????????????????####?????????????????????? | | ?????????????????????????????????????????????????? | | ?????????????????????????????????????????????????? | | ?????????????????????????????????????????????????? | | ?????????????????????????????????????????????????? | | ?????????????????????????????????????????????????? | | ?????????????????????????????????????????????????? | | ?????????????????????????????????????????????????? | | ?????????????????????????????????????????????????? | | ?????????????????????????????????????????????????? | | ?????????????????????????????????????????????????? | | ?????????????????????????????????????????????????? | | ?????????????????????????????????????????????????? | | ?????????????????????????????????????????????????? | | ?????????????????????????????????????????????????? | | ?????????????????????????????????????????????????? | | ?????????????????????????????????????????????????? | | ?????????????????????????????????????????????????? | +----------------------------------------------------+ Best States ------------- Heat Dissipation 25 Energy Generation 10 Energy Capacity 125 Matter Stores 261 Matter Capacity 300 Sight Range 16 Terrain Scan Density 10 Evasion (%) 50 Recoil Reduction 2 Item Schematics ----------------- None Robot Schematics ------------------ None Fabricated ------------ Nothing Alien Tech Used ----------------- None Achievements -------------- Power Corrupts Challenges ------------ None Game ------ Seed WarpAssembledModule Manual? 0 Play Time 00:08:41 Cumulative 13.4 hours Start 2024.09.19 @ 17:18:44 End 2024.09.19 @ 17:26:09 Sessions 1 Manual Loads 0 Difficulty Rogue Special Mode None Game No. 28 Rogue 23 Adventurer 5 Explorer 0 Win Type - Total 0 Types 0/0/0/0/0/0/0/0/0 Lore% 8 Gallery% 13 Achievement% 12 Wizard Run 0 Options --------- Layout 0 ASCII 0 Keyboard 0 Movement Numpad Keybinds 0 Fullscreen 1 Font 18/SmallcapsGlow Map View 76x50 Zoom Use 0% Tactical HUD 1 Map Filters NONE Filters NONE Steam 1 RUN: 47204ad4-9da0-40c9-9de7-6c33d489d016